[Event "Fall GM-C Norm Invitational 2022"]
[Site "Charlotte"]
[Date "2022.11.20"]
[Round "5"]
[White "Gedajlovic, Max"]
[Black "Escobar Forero, Alder"]
[Result "1-0"]
[ECO "B81"]
[WhiteElo "2317"]
[BlackElo "2510"]
[Annotator "TA"]
[PlyCount "97"]
[EventDate "2022.11.18"]
[EventType "tourn"]
[EventCountry "USA"]
[SourceTitle "playchess.com"]
[Source "ChessBase"]
[SourceQuality "1"]
[TimeControl "5400+30"]

{[%evp 12,97,54,49,84,71,86,84,84,83,97,91,85,83,115,108,162,164,216,84,98,85,91,93,96,97,95,100,102,102,91,73,72,62,73,72,62,45,68,62,81,43,39,43,29,44,88,85,90,81,105,110,161,161,165,158,195,195,226,224,219,220,364,358,416,426,410,416,762,753,759,745,680,658,838,858,1800,562,2432,2062,5022,5022,29957,29963,29955,5297,2019,1602]} 1. e4 {[%emt 0:01:29]} c5 {[%emt 0:00:29]} 2. Nf3 {[%emt 0:00:10]} e6 {[%emt 0:02:27]} 3. d4 {[%emt 0:00:40]} cxd4 {[%emt 0:00:06]} 4. Nxd4 {[%emt 0:00:07]} Nf6 {[%emt 0:00:23]} 5. Nc3 {[%emt 0:00:18]} d6 {[%emt 0:00:11]} 6. g4 {[%emt 0:02:23]} h6 {[%emt 0:02:21]} 7. Rg1 {[%emt 0:00:16]} g5 {[%emt 0:05:12] Inhibits h4. B81: Sicilian Scheveningen: Keres Attack.} 8. h4 {[%emt 0:00:50] [#]} Rg8 $146 {[%emt 0:03:42]} ({Predecessor:} 8... gxh4 9. g5 hxg5 10. Bxg5 Be7 11. Qd3 a6 12. O-O-O Bd7 13. e5 dxe5 14. Nxe6 Qa5 15. Bxf6 Bxf6 16. Nd5 Bxe6 17. Nxf6+ Ke7 18. Ng8+ Rxg8 19. Rxg8 Qc7 20. Qa3+ Kf6 21. Qe3 {1-0 (21) Bronstein,O (2476)-Gnojek,P (2295) Pardubice 2022}) 9. hxg5 {[%emt 0:05:00]} hxg5 {[%emt 0:00:04] White is better.} 10. Be3 {[%emt 0:06:26]} Nc6 {[%emt 0:00:46]} 11. Qd2 {[%emt 0:05:32]} Nd7 {[%emt 0:17:23]} 12. O-O-O {[%emt 0:02:58] White is more active.} Nde5 {[%emt 0:03:26]} 13. Be2 {[%emt 0:02:03]} a6 {[%emt 0:06:05] Inhibits Ndb5.} (13... Nxd4 $16 14. Bxd4 (14. Qxd4 a6 $14) 14... Nc6) 14. Nf5 $18 {[%emt 0:13:25]} Na5 {[%emt 0:31:46] [#]} (14... f6 {keeps fighting.} 15. Nxd6+ Bxd6) 15. Nxd6+ {[%emt 0:03:17]} (15. b3 $1 $18 {and White stays clearly on top.}) 15... Bxd6 {[%emt 0:00:36]} 16. Qxd6 {[%emt 0:00:07]} Qxd6 {[%emt 0:00:04]} 17. Rxd6 {[%emt 0:00:08] Threatens to win with Bb6.} Nac4 {[%emt 0:00:06] Inhibits Bb6.} 18. Bxc4 {[%emt 0:01:31]} Nxc4 {[%emt 0:00:02] [#]} 19. Rd3 {[%emt 0:00:21] Strongly threatening Bd4.} Nxe3 {[%emt 0:08:47]} 20. Rxe3 {[%emt 0:00:11]} Bd7 {[%emt 0:00:21]} 21. b3 {[%emt 0:03:07]} Rh8 {[%emt 0:01:33]} 22. Rg2 {[%emt 0:01:04]} Ke7 {[%emt 0:00:29]} 23. Ne2 {[%emt 0:01:07]} Rh1+ {[%emt 0:01:33]} 24. Kd2 {[%emt 0:05:04]} Rd8 {[%emt 0:05:35]} 25. Rd3 {[%emt 0:01:52]} Rdh8 {[%emt 0:00:07]} 26. Ng3 {[%emt 0:06:08]} Ra1 {[%emt 0:03:00]} 27. a4 {[%emt 0:01:05]} b5 {[%emt 0:00:52]} 28. axb5 {[%emt 0:00:54]} axb5 {[%emt 0:00:02]} 29. Ne2 {[%emt 0:04:12] White stays focused until the end.} Rhh1 {[%emt 0:02:06]} 30. Kc3 {[%emt 0:01:22] Inhibits b4+.} Ra2 {[%emt 0:02:11][%cal Ob5b4]} 31. Rd2 {[%emt 0:02:52] Prevents b4+.} Rh3+ {[%emt 0:03:01]} (31... Raa1 $16) 32. Kb4 {[%emt 0:02:14]} ({Resist} 32. Rg3 Rxg3+ 33. Nxg3 Ra1 $16) 32... Bc6 {[%emt 0:00:57]} 33. Rg3 {[%emt 0:02:42]} Rxg3 {[%emt 0:00:41]} 34. Nxg3 $16 {[%emt 0:00:05][%mdl 4096] Endgame KRB-KRN} Ra1 {[%emt 0:00:23]} 35. Kc5 {[%emt 0:01:44]} Bd7 {[%emt 0:00:02]} 36. Ne2 {[%emt 0:01:18]} Re1 {[%emt 0:01:10]} (36... Ra8 $142 37. Nd4 Rc8+ 38. Kb4 Rb8) 37. Nc3 $18 {[%emt 0:01:47]} Rg1 {[%emt 0:00:15]} 38. Nxb5 {[%emt 0:01:48]} Rxg4 {[%emt 0:00:04]} 39. Nd6 {[%emt 0:01:09]} f5 {[%emt 0:00:44]} (39... Rh4 $142 40. Nxf7 Rxe4) 40. exf5 {[%emt 0:01:10]} exf5 {[%emt 0:00:03]} 41. b4 {[%emt 0:00:22]} Rg1 {[%emt 0:00:06]} 42. b5 {[%emt 0:00:48]} Rb1 {[%emt 0:00:19]} 43. b6 {[%emt 0:01:24] c4 is the strong threat.} Rb2 {[%emt 0:00:28] Inhibits c4.} 44. Re2+ {[%emt 0:02:05]} (44. b7 $142 Rxb7 45. Nxb7) 44... Kf6 {[%emt 0:00:25]} 45. b7 {[%emt 0:00:42] And now c4 would win.} g4 {[%emt 0:00:05]} 46. c4 {[%emt 0:00:58]} Rxe2 {[%emt 0:00:19]} 47. b8=Q {[%emt 0:00:08]} (47. b8=B $2 {is the wrong capture.} Rxf2 48. Kd4 g3 $19) 47... Be6 {[%emt 0:00:05]} 48. Qh8+ {[%emt 0:01:18]} (48. Qd8+ $142 Kg6 49. Qe8+ Kg5 50. Qe7+ Kf4 51. Nf7 Kf3 52. Ng5+ Kg2 53. Nxe6 Kxf2 {[#]} 54. Qg5 $1 Re5+ 55. Kd6) 48... Kg5 {[%emt 0:00:05]} 49. Qd4 {[%emt 0:01:23] Weighted Error Value: White=0.21 (precise) /Black=0.37} 1-0

[Event "Fall GM-C Norm Invitational 2022"]
[Site "Charlotte"]
[Date "2022.11.20"]
[Round "6"]
[White "Macieja, Bartlomiej"]
[Black "Gedajlovic, Max"]
[Result "1/2-1/2"]
[ECO "D41"]
[WhiteElo "2514"]
[BlackElo "2317"]
[Annotator "TA"]
[PlyCount "85"]
[EventDate "2022.11.18"]
[EventType "tourn"]
[EventCountry "USA"]
[SourceTitle "playchess.com"]
[Source "ChessBase"]
[SourceQuality "1"]
[TimeControl "5400+30"]

{[%evp 14,85,20,0,6,0,6,5,9,0,27,24,32,23,35,31,40,24,21,16,24,22,37,24,51,51,82,60,85,80,93,79,92,95,81,42,25,13,29,0,0,0,0,0,0,0,-14,-45,0,0,0,0,0,0,-8,-154,-139,-155,-146,-127,-137,-287,-270,-265,-253,-219,0,-343,0,-132,0,-312,0,-131]} 1. Nf3 {[%emt 0:00:01]} d5 {[%emt 0:00:32]} 2. d4 {[%emt 0:00:03]} Nf6 {[%emt 0:00:08]} 3. c4 {[%emt 0:00:05]} e6 {[%emt 0:00:10]} 4. Nc3 {[%emt 0:00:04]} c5 {[%emt 0:00:08]} 5. cxd5 {[%emt 0:00:33]} cxd4 {[%emt 0:00:11]} 6. Qa4+ {[%emt 0:06:00]} Bd7 {[%emt 0:00:30]} 7. Qxd4 {[%emt 0:00:05]} exd5 {[%emt 0:00:12]} 8. Bg5 {[%emt 0:00:36]} Nc6 {[%emt 0:00:12] D41: Queen's Gambit Declined: Semi-Tarrasch with 5 cxd5.} 9. Qd3 {[%emt 0:07:11]} Be6 {[%emt 0:01:09]} 10. e3 {[%emt 0:00:30] Inhibits d4.} h6 {[%emt 0:02:31]} 11. Bh4 {[%emt 0:04:04]} Be7 {[%emt 0:09:10]} (11... g5 $5 12. Bg3 $8 Ne4 $11) 12. Be2 {[%emt 0:00:20]} O-O {[%emt 0:07:34]} 13. O-O {[%emt 0:00:12]} a6 {[%emt 0:00:16]} 14. Rfd1 {[%emt 0:14:19]} Qb6 {[%emt 0:01:20]} 15. a3 {[%emt 0:23:56]} Rfd8 {[%emt 0:18:36]} (15... Qxb2 $2 16. Rdb1 Bf5 17. Rxb2 $18) 16. b4 {[%emt 0:00:16]} Rac8 {[%emt 0:01:11][%cal Od5d4]} 17. Rac1 {[%emt 0:01:02]} Qa7 {[%emt 0:01:27]} 18. h3 {[%emt 0:18:07] [#]} g6 $146 {[%emt 0:11:36]} ({Predecessor:} 18... b5 19. Bg3 Qb7 20. Ne5 Nxe5 21. Bxe5 Ne4 22. Qb1 f6 23. Bd4 Nd6 24. Bc5 Nc4 25. Bxe7 Qxe7 {0-1 (90) Faizrakhmanov,R (2469)-Bryakin,M (2436) Sochi 2022}) 19. Bf1 {[%emt 0:08:35]} Kg7 {[%emt 0:01:36]} 20. Ne2 {[%emt 0:01:52]} g5 {[%emt 0:07:15]} 21. Bg3 {[%emt 0:00:01]} Ne4 {[%emt 0:00:52] [#]} 22. Nfd4 $1 {[%emt 0:05:37]} Bf6 {[%emt 0:13:14]} 23. Nxe6+ {[%emt 0:00:06]} fxe6 {[%emt 0:00:04]} 24. Bh2 {[%emt 0:00:04] Threatens to win with f3.} Ne5 {[%emt 0:01:18][%cal Bc6e5,Be5c4,Bc4b2][%mdl 32]} 25. Qb3 {[%emt 0:02:21]} b5 {[%emt 0:08:31]} 26. Nd4 {[%emt 0:05:15]} Qf7 {[%emt 0:01:03]} 27. Rxc8 {[%emt 0:01:07]} Rxc8 {[%emt 0:00:07]} 28. f3 {[%emt 0:00:03]} Nd6 {[%emt 0:04:40]} 29. e4 {[%emt 0:00:13]} Nec4 {[%emt 0:01:18] [#] Strongly threatening ...Bxd4+.} 30. Ne2 {[%emt 0:02:19]} Qa7+ {[%emt 0:04:46]} 31. Kh1 {[%emt 0:00:01]} Qe3 {[%emt 0:00:33]} 32. Qa2 {[%emt 0:00:59]} Nb2 $36 {[%emt 0:01:00][%mdl 2048] Black is pushing. Pair of Knights!} 33. Rb1 {[%emt 0:00:27]} Ndc4 {[%emt 0:01:13] ...Nd3 is the strong threat.} 34. exd5 {[%emt 0:00:12]} (34. Ng3 $1 $11 Kh8 35. Bxc4 bxc4 36. e5 (36. Nh5 Bc3 $17)) 34... Qxa3 $17 ({And not} 34... exd5 35. Ng3 Kh8 36. Bg1 $11) 35. Ra1 {[%emt 0:00:36]} Qxa2 {[%emt 0:02:37]} 36. Rxa2 {[%emt 0:00:01]} Ne3 ({Not} 36... exd5 37. Rxa6 d4 38. Ng3 $15) 37. Ng3 {[%emt 0:00:49]} (37. Kg1 $17 {was the only chance.}) 37... Nxf1 $19 38. Nh5+ {[%emt 0:00:20]} Kg6 {[%emt 0:01:25]} 39. Nxf6 {[%emt 0:00:03]} Rc1 $2 {[%emt 0:00:52]} ({Black should try} 39... Kxf6 $19 40. Rxb2 Nxh2 41. Kxh2 exd5) 40. Bg1 $2 {[%emt 0:01:33][%mdl 8192]} (40. Be5 $11 {and White stays safe.} Ne3+ 41. Kh2) 40... Ng3+ $2 {[%emt 0:00:36]} (40... Nd3 $19 41. Rxa6 Kxf6 42. Bd4+ Ke7 43. Rxe6+ Kd7 44. Rxh6 Nxb4) 41. Kh2 $17 {[%emt 0:00:01]} Nf1+ $2 {[%emt 0:00:07]} (41... Nd3 $17 42. Kxg3 Rxg1) 42. Kh1 $19 {[%emt 0:00:00]} Ng3+ {[%emt 0:00:54]} (42... Nd3 $19 {and Black stays clearly on top.} 43. Rxa6 Kxf6 44. Bd4+ Ke7 45. Rxe6+ Kd7 46. Rxh6 Nxb4) 43. Kh2 {[%emt 0:00:01] Weighted Error Value: White=0.28 (precise) /Black=0.35} 1/2-1/2

[Event "Fall GM-C Norm Invitational 2022"]
[Site "Charlotte"]
[Date "2022.11.20"]
[Round "6"]
[White "Escobar Forero, Alder"]
[Black "Ippolito, Dean"]
[Result "0-1"]
[ECO "C65"]
[WhiteElo "2510"]
[BlackElo "2368"]
[Annotator "TA"]
[PlyCount "92"]
[EventDate "2022.11.18"]
[EventType "tourn"]
[EventCountry "USA"]
[SourceTitle "playchess.com"]
[Source "ChessBase"]
[SourceQuality "1"]
[TimeControl "5400+30"]

{[%evp 9,92,3,12,-1,6,-27,0,0,-14,-15,0,0,16,0,12,9,32,45,40,0,1,10,9,8,-3,6,58,-25,-15,-23,-16,-24,-22,-23,0,-19,-20,-19,0,0,0,0,0,0,0,-20,-20,-25,-7,-8,0,-5,-5,-34,-43,-260,-256,-254,-256,-275,-239,-806,-791,-733,-629,-1206,-1201,-1172,-1127,-1104,-991,-12827,-12823,-12834,-12835,-12834,-12833,-29979,-1172,-29979,-29980,-12843,-12840,-12841,-12840]} 1. e4 {[%emt 0:00:28]} e5 {[%emt 0:00:07]} 2. Nf3 {[%emt 0:00:05]} Nc6 {[%emt 0:00:04]} 3. Bb5 {[%emt 0:00:10]} Nf6 {[%emt 0:00:07]} 4. d3 {[%emt 0:00:15]} Bc5 {[%emt 0:00:07]} 5. c3 {[%emt 0:00:48]} d5 {[%emt 0:00:12]} 6. Qe2 {[%emt 0:00:07] Strongly threatening d4. C65: Ruy Lopez: Berlin Defence (3...Nf6), unusual lines and 4 0-0 Bc5.} O-O {[%emt 0:03:03]} 7. h3 {[%emt 0:02:00]} a5 {[%emt 0:12:53]} 8. O-O {[%emt 0:10:02] The position is equal.} dxe4 {[%emt 0:12:10]} 9. dxe4 {[%emt 0:00:40]} Qe7 {[%emt 0:00:19] [#]} 10. Rd1 $146 {[%emt 0:04:45]} ({Predecessor:} 10. Nbd2 Nb8 11. Rd1 c6 12. Bd3 h6 13. Nf1 Nh5 14. Be3 Bxe3 15. Qxe3 Nf4 16. Bc2 {1-0 (49) Quinones,C (2154)-Siddharth,J (2320) Chess.com INT 2020}) 10... Nb8 {[%emt 0:02:26]} 11. Bg5 {[%emt 0:10:59]} c6 {[%emt 0:08:57]} 12. Bd3 {[%emt 0:01:38]} Rd8 {[%emt 0:05:50]} 13. Nbd2 {[%emt 0:01:46]} Nbd7 {[%emt 0:00:09]} 14. Nh4 {[%emt 0:02:59]} h6 {[%emt 0:03:54]} 15. Nf5 {[%emt 0:01:21]} Qf8 {[%emt 0:00:17]} 16. Bh4 {[%emt 0:01:54]} g6 {[%emt 0:00:45]} 17. Ne3 {[%emt 0:05:45]} Be7 {[%emt 0:00:56]} (17... Re8 $11) 18. Qf3 {[%emt 0:14:12] [#]} (18. Bc2 $14) 18... Nxe4 $1 $11 {[%emt 0:06:50]} 19. Qxe4 {[%emt 0:07:06] Threatens to win with Nf3.} Nc5 $1 {[%emt 0:00:07][%csl LRd3,LRe4]} 20. Qxe5 {[%emt 0:00:27]} ({Much worse is} 20. Bxe7 Qxe7 21. Qf3 Nxd3 $17) 20... Bxh4 {[%emt 0:00:29]} 21. Bc2 {[%emt 0:00:23]} Be6 {[%emt 0:08:14]} 22. Nb3 {[%emt 0:03:39]} Rxd1+ {[%emt 0:14:48]} (22... Bxb3 {looks sharper.} 23. axb3 Rxd1+ 24. Rxd1 Re8) 23. Rxd1 {[%emt 0:01:25]} Nxb3 {[%emt 0:00:06]} 24. Bxb3 {[%emt 0:01:03]} Bxb3 {[%emt 0:02:23]} 25. axb3 {[%emt 0:00:07]} Qe8 {[%emt 0:01:34]} 26. Qc7 {[%emt 0:03:14]} Bg5 {[%emt 0:08:24]} 27. Nf1 {[%emt 0:14:56]} b5 {[%emt 0:00:32]} 28. g3 {[%emt 0:05:51]} h5 {[%emt 0:03:31]} 29. h4 {[%emt 0:00:30]} Bh6 {[%emt 0:00:03]} 30. Rd6 {[%emt 0:03:28]} Bc1 {[%emt 0:00:23]} 31. Rxc6 {[%emt 0:01:28]} Bxb2 {[%emt 0:00:18] aiming for ...a4.} 32. Qb7 $2 {[%emt 0:00:35] White does not recover from this.} ({White should try} 32. Rb6 $1 $15) 32... a4 $19 {[%emt 0:01:11]} 33. bxa4 {[%emt 0:01:28]} bxa4 {[%emt 0:00:07] White must now prevent ...a3.} 34. Ne3 {[%emt 0:00:41]} a3 {[%emt 0:02:02]} 35. Ra6 $2 {[%emt 0:00:38]} (35. Nd5 Kg7 36. Nf6 (36. Ra6 $2 Qe1+ 37. Kg2 Qe4+ 38. Kg1 Qe1+ 39. Kg2 Rxa6 $19)) 35... Rxa6 {[%emt 0:00:03]} 36. Qxa6 {[%emt 0:00:03][%mdl 4096] Endgame KQB-KQN} Qe6 {[%emt 0:00:34]} 37. Qa8+ {[%emt 0:00:29]} Kg7 {[%emt 0:00:08] ...a2 is the strong threat.} 38. c4 {[%emt 0:00:36]} Qb6 {[%emt 0:01:01]} 39. Qa4 {[%emt 0:00:31]} Qd4 {[%emt 0:00:56]} 40. Qb3 {[%emt 0:00:37]} Qc3 {[%emt 0:00:44]} 41. Qa2 {[%emt 0:00:40]} Qc1+ {[%emt 0:01:32]} 42. Kg2 {[%emt 0:00:07]} Bd4 {[%emt 0:01:01]} 43. Nc2 {[%emt 0:00:31]} Bc5 {[%emt 0:00:54]} (43... Qd2 $142 44. Kh3 Qxf2 45. Qb1 Be5 46. Qb3 a2 47. Qd3 {[#]} Bxg3 $1 {[%mdl 512]} 48. Qc3+ Kh7 49. Qxg3 Qf5+ 50. Kg2 Qxc2+ 51. Qf2 Qxf2+ 52. Kxf2 a1=Q 53. c5 Qd4+ 54. Ke2 Qxc5 55. Kd3 f5 56. Kd2 f4 57. Ke2 Qd4 58. Kf3 Qe3+ 59. Kg2 Qe2+ 60. Kh3 Qg4+ 61. Kh2 f3 62. Kh1 Qg2#) 44. Qb3 {[%emt 0:01:29]} Qd2 {[%emt 0:01:01]} 45. Kh3 {[%emt 0:00:33]} Qxf2 {[%emt 0:00:47] ( -> ...Qf1+)} 46. Qd3 {[%emt 0:00:26] Prevents Qf1+.} a2 {[%emt 0:00:48] Weighted Error Value: White=0.86/Black=0.18 (very precise)} 0-1

[Event "Fall GM-C Norm Invitational 2022"]
[Site "Charlotte"]
[Date "2022.11.20"]
[Round "6"]
[White "Georgiev, Vladimir"]
[Black "Slade, Theodore"]
[Result "1-0"]
[ECO "D31"]
[WhiteElo "2406"]
[BlackElo "2028"]
[Annotator "TA"]
[PlyCount "63"]
[EventDate "2022.11.18"]
[EventType "tourn"]
[EventCountry "USA"]
[SourceTitle "playchess.com"]
[Source "ChessBase"]
[SourceQuality "1"]
[TimeControl "5400+30"]

{[%evp 9,62,32,19,0,31,0,6,-22,16,0,0,17,0,0,0,0,18,17,46,25,33,38,9,12,22,21,220,83,274,257,431,408,404,405,820,367,29959,29954,29978,29979,29979,29980,29980,29981,5481,2000,29995,29986,29996,29997,29997,29998,29998,29999,29999]} 1. d4 {[%emt 0:02:40]} d5 {[%emt 0:00:08]} 2. c4 {[%emt 0:00:09]} e6 {[%emt 0:00:05]} 3. Nc3 {[%emt 0:00:06]} a6 {[%emt 0:00:08]} 4. cxd5 {[%emt 0:00:10]} exd5 {[%emt 0:00:06]} 5. Nf3 {[%emt 0:00:05]} c6 {[%emt 0:00:10]} 6. h3 {[%emt 0:01:37] D31: Queen's Gambit Declined: Semi-Slav without ...Nf6 (+ Marshall Gambit and Noteboom) and Exchange Variation lines without ...Nf6.} Nf6 {[%emt 0:07:38]} 7. Bg5 {[%emt 0:00:14]} h6 {[%emt 0:06:05]} 8. Bh4 {[%emt 0:00:20] [#] The position is equal.} Nbd7 $146 {[%emt 0:00:26]} ({Predecessor:} 8... Be7 9. e3 O-O 10. Bd3 Ne4 11. Bxe7 Qxe7 12. Bxe4 dxe4 13. Nd2 f5 14. Qe2 Be6 {0-1 (85) Hofmann,T (2215)-Kopinits,A (2204) Playchess.com INT 2020}) 9. Qc2 {[%emt 0:04:58]} Bd6 {[%emt 0:04:25]} 10. O-O-O {[%emt 0:03:01]} g5 {[%emt 0:12:21]} 11. Bg3 {[%emt 0:00:16]} Bxg3 {[%emt 0:00:06]} 12. fxg3 {[%emt 0:00:05]} Qe7 {[%emt 0:02:37] Inhibits e4.} 13. e3 {[%emt 0:01:36]} Nf8 {[%emt 0:06:48]} (13... Qxe3+ $2 14. Kb1 $18) 14. Bd3 {[%emt 0:01:48]} Qxe3+ {[%emt 0:04:21]} 15. Kb1 {[%emt 0:00:42]} Qe7 {[%emt 0:00:15]} 16. Na4 {[%emt 0:02:20]} Be6 $1 {[%emt 0:03:39]} 17. Nc5 {[%emt 0:03:27]} O-O-O $2 {[%emt 0:07:18] [#] Black is on the road to losing.} (17... Qc7 $11) 18. Ne5 {[%emt 0:04:44]} (18. Bxa6 $1 $18 {[%mdl 512]} bxa6 19. Qa4) 18... Rd6 $2 {[%emt 0:21:09]} (18... Ne4 $16) 19. Qa4 $18 {[%emt 0:04:17]} Qc7 {[%emt 0:05:33] [#]} (19... N8d7 20. Nxb7 Kxb7) 20. Nxb7 $1 {[%emt 0:09:50][%mdl 576] Decoy} Kxb7 {[%emt 0:00:27]} (20... Qxb7 $2 21. Bxa6 Qxa6 22. Qxa6+ $18) 21. Bxa6+ {[%emt 0:00:07]} Kb6 {[%emt 0:04:07]} (21... Kb8 $142 22. Rc1 Qb6) 22. Rhf1 {[%emt 0:03:57]} (22. Rc1 $142 {Threatening mate with Rc3.} Bf5+ 23. Ka1) 22... Bc8 $2 {[%emt 0:02:43]} (22... Qa7 $18 23. Rxf6 Nd7) 23. Bxc8 {[%emt 0:02:33]} Qxc8 {[%emt 0:00:10]} 24. Qb4+ {[%emt 0:03:00]} Kc7 {[%emt 0:00:10]} 25. Qa5+ {[%emt 0:00:30]} Kb8 {[%emt 0:01:36]} 26. Rd3 {[%emt 0:00:53]} Qb7 {[%emt 0:01:22] [#]} 27. Rb3 {[%emt 0:00:42]} (27. Rxf6 $142 $1 {[%mdl 512]} Qb5 28. Rb3 Qxb3 29. axb3 Rxf6 30. Qd8+ Kb7 31. Qxf6) 27... Rh7 {[%emt 0:03:28]} 28. Rxf6 {[%emt 0:02:07][%mdl 64] Deflection, Decoy. White mates.} Rxf6 {[%emt 0:01:05]} 29. Qd8+ {[%emt 0:00:11]} Ka7 {[%emt 0:00:03]} 30. Ra3+ {[%emt 0:00:15]} Qa6 {[%emt 0:00:05]} 31. Qc7+ {[%emt 0:00:14][%mdl 64] Deflection} Ka8 {[%emt 0:00:05]} 32. Rxa6# {[%emt 0:00:05] Weighted Error Value: White=0.35/Black=0.97} 1-0

[Event "Fall GM-C Norm Invitational 2022"]
[Site "Charlotte"]
[Date "2022.11.20"]
[Round "6"]
[White "Rodriguez Garcia, Victor"]
[Black "Sethuraman, Sandeep"]
[Result "0-1"]
[ECO "B51"]
[WhiteElo "2350"]
[BlackElo "2371"]
[Annotator "TA"]
[PlyCount "110"]
[EventDate "2022.11.18"]
[EventType "tourn"]
[EventCountry "USA"]
[SourceTitle "playchess.com"]
[Source "ChessBase"]
[SourceQuality "1"]
[TimeControl "5400+30"]

{[%evp 9,110,0,29,29,20,8,27,32,33,29,54,52,54,65,66,66,66,66,68,43,50,48,79,75,76,72,95,78,83,63,67,60,57,18,67,65,65,18,23,20,38,-18,-19,-7,-18,-30,-3,-14,-14,0,-3,-20,-20,-29,-22,-22,-22,-38,-18,-11,0,0,0,0,0,0,0,0,65,70,181,-573,-19,-1552,-1562,-1477,-877,-1440,-1473,-2591,-2457,-2226,0,-1697,0,-2043,-1748,-1501,-762,-733,-733,-722,-717,-710,-710,-797,-756,-1018,-1018,-1448,-1392,-1136,-1073]} 1. e4 {[%emt 0:00:02]} c5 {[%emt 0:00:03]} 2. Nf3 {[%emt 0:00:04][%cal Bg1f3,Bf3d4,Bd4b3,Bb3d2,Bd2b1,Bb1a3][%mdl 32]} d6 {[%emt 0:00:05]} 3. Bb5+ {[%emt 0:00:07]} Nd7 {[%emt 0:00:07]} 4. d4 {[%emt 0:00:18]} cxd4 {[%emt 0:00:08]} 5. Nxd4 {[%emt 0:00:15]} a6 {[%emt 0:01:37]} 6. Bd3 {[%emt 0:00:23] B51: Sicilian: Moscow Variation (3 Bb5+) without 3...Bd7.} Ngf6 {[%emt 0:03:14]} 7. O-O {[%emt 0:00:11]} e5 {[%emt 0:05:09]} 8. Nb3 {[%emt 0:01:53] White has an edge.} Be7 {[%emt 0:01:36]} 9. c4 {[%emt 0:00:19]} a5 {[%emt 0:04:07]} 10. Nc3 {[%emt 0:01:47]} a4 {[%emt 0:01:38]} 11. Nd2 {[%emt 0:00:21]} Nc5 {[%emt 0:01:05]} 12. Bc2 {[%emt 0:03:22]} Bd7 {[%emt 0:01:35] [#]} 13. Ndb1 $146 {[%emt 0:01:16]} ({Predecessor:} 13. Qe2 O-O 14. Nb5 Bg4 15. f3 Be6 16. Nb1 Qb6 17. Be3 Qc6 18. N1c3 Na6 19. Nd5 Bxd5 20. exd5 {1-0 (27) Gonzalez Palacio,O (1606)-Murillo Subia,A (1665) San Jose de David 2020}) 13... Bc6 {[%emt 0:07:30][%cal Rf6e4]} 14. Re1 {[%emt 0:00:51]} O-O {[%emt 0:03:03]} 15. Na3 {[%emt 0:00:28]} Nfd7 {[%emt 0:05:57]} 16. Be3 {[%emt 0:05:17]} Qa5 {[%emt 0:06:23]} 17. Qd2 {[%emt 0:07:34]} Nb6 {[%emt 0:07:24]} 18. Rac1 {[%emt 0:02:26]} Rfc8 {[%emt 0:05:41]} 19. Bb1 {[%emt 0:01:39]} Bd7 {[%emt 0:02:39]} 20. Red1 {[%emt 0:05:00]} Qa6 {[%emt 0:02:57]} 21. f3 {[%emt 0:09:13]} Bf8 {[%emt 0:03:58]} (21... Nxc4 $2 22. Nxc4 Be6 23. Nxd6 $18) (21... Be6 $11) 22. Qe2 $1 $14 {[%emt 0:08:39]} Be6 {[%emt 0:05:45]} 23. Nd5 {[%emt 0:06:12]} (23. Ncb5 $1 $14) 23... Nxd5 $1 $11 {[%emt 0:01:22]} 24. exd5 {[%emt 0:00:41]} Bd7 {[%emt 0:00:03]} 25. f4 {[%emt 0:04:08]} (25. g4 $14) 25... exf4 {[%emt 0:03:07]} 26. Bd4 {[%emt 0:02:30]} g6 {[%emt 0:04:26]} 27. Qf2 {[%emt 0:03:07]} Bh6 {[%emt 0:03:30]} 28. Qh4 {[%emt 0:01:58] [#] Intending Qf6 and mate.} Bg7 {[%emt 0:00:02] Inhibits Qf6.} 29. Bxg7 {[%emt 0:00:50]} Kxg7 {[%emt 0:00:02]} 30. Qxf4 {[%emt 0:01:00]} Qb6 {[%emt 0:00:46] Hoping for ...Nd3+.} 31. Qd4+ {[%emt 0:00:40]} Kg8 {[%emt 0:00:07]} 32. Rf1 {[%emt 0:08:34]} Re8 {[%emt 0:01:38]} 33. Rf2 {[%emt 0:02:46]} Re5 {[%emt 0:02:41]} 34. Rcf1 {[%emt 0:00:29]} f5 {[%emt 0:00:49]} 35. g4 $1 {[%emt 0:03:30]} fxg4 {[%emt 0:02:26]} 36. Rf6 {[%emt 0:04:51]} Rae8 {[%emt 0:04:42]} 37. Qf2 {[%emt 0:06:15][%cal Of6g6] Threatening mate with Rxg6+!} Bf5 {[%emt 0:01:01]} 38. Nb5 {[%emt 0:03:57]} Re2 {[%emt 0:04:34]} (38... Qd8 $11 39. Nxd6 (39. Rxd6 Qe7 $17) 39... Qxf6 40. Nxe8 Rxe8 41. Qxc5 Qh4) 39. Qd4 $14 {[%emt 0:00:05]} Bxb1 {[%emt 0:01:59]} ({Better is} 39... Rd2 $1 $14 40. Qxd2 Ne4+ 41. Qd4 Qxd4+ 42. Nxd4 Nxf6) 40. Rxd6 $4 {[%emt 0:00:53][%mdl 8192]} (40. Nxd6 $18 {[%cal Of6f8] Rf8+! would kill now.} Qxb2 41. Qxb2 Rxb2 42. Nxe8) 40... Be4 $2 {[%emt 0:01:42]} 41. Rf7 $2 {[%emt 0:02:05][%mdl 8192]} (41. Rxb6 $11 Rg2+ 42. Kh1 Rxb2+ 43. Kg1 Rg2+ 44. Kh1 Rxa2+ 45. Kg1 Rg2+ 46. Kh1 Rd2+ 47. Kg1 Rg2+ 48. Kh1 Rd2+ 49. Kg1 Rxd4 50. Nxd4) 41... Re1+ $19 {[%emt 0:02:01]} 42. Rf1 {[%emt 0:01:14]} Rxf1+ {[%emt 0:00:21]} 43. Kxf1 {[%emt 0:00:01]} Qa5 {[%emt 0:00:10]} 44. Nc3 {[%emt 0:01:54]} Qc7 {[%emt 0:01:00]} 45. Nb5 {[%emt 0:00:35]} Qa5 {[%emt 0:00:16] ( -> ...Bd3+)} 46. Nc3 $1 {[%emt 0:00:02]} Qc7 {[%emt 0:00:04]} 47. Nb5 {[%emt 0:00:02]} Qf7+ {[%emt 0:01:13] Black is clearly winning.} 48. Rf6 {[%emt 0:00:09]} Qxf6+ {[%emt 0:00:08]} 49. Qxf6 {[%emt 0:00:08]} Rf8 {[%emt 0:00:02]} 50. Qxf8+ {[%emt 0:00:21]} Kxf8 {[%emt 0:00:01]} 51. Kf2 {[%emt 0:00:36]} Bd3 {[%emt 0:00:26]} 52. Na3 {[%emt 0:00:19]} h5 {[%emt 0:00:14][%cal Bh7h5,Bh5h4][%mdl 32]} 53. Ke3 {[%emt 0:00:17]} h4 {[%emt 0:00:24]} 54. b4 {[%emt 0:00:15]} axb3 {[%emt 0:00:05]} 55. axb3 {[%emt 0:00:04] [#]} Nxb3 $1 {[%emt 0:01:24] Weighted Error Value: White=0.36/Black=0.45} 0-1